[Event "IIFL Wealth  4th Mumbai Junior U-13"]
[Site "Mumbai"]
[Date "2018.12.31"]
[Round "2"]
[White "Krishnan Ritvik"]
[Black "Renganayaki V"]
[Result "1/2-1/2"]
[ECO "B27"]
[WhiteElo "1812"]
[BlackElo "1376"]
[Annotator "NA RC"]
[PlyCount "57"]
[EventDate "2018.12.30"]
[EventType "swiss"]
[EventCountry "IND"]
[SourceTitle "playchess.com"]
[Source "ChessBase"]
[SourceQuality "1"]
[TimeControl "40/5400+30:1800+30"]

1. e4 {[%emt 0:00:52]} c5 {[%emt 0:00:17]} 2. Nf3 {[%emt 0:00:03]} g6 {[%emt 0:00:34]} 3. c3 {[%emt 0:00:04]} Bg7 {[%emt 0:00:11]} 4. d4 {[%emt 0:00:05]} cxd4 {[%emt 0:00:04]} 5. cxd4 {[%emt 0:00:06]} d5 {[%emt 0:00:12]} 6. e5 {[%emt 0:00:04]} Bg4 {[%emt 0:00:43]} 7. h3 {[%emt 0:00:34]} Bxf3 {[%emt 0:00:25]} 8. Qxf3 {[%emt 0:00:02]} e6 {[%emt 0:00:15] B27: Sicilian: 2 Nf3, unusual Black 2nd moves} (8... Nc6 9. Bb5 e6 10. Nc3 Qb6 11. Be3 Nge7 12. O-O a6 13. Bxc6+ Nxc6 14. Rab1 O-O 15. Rfd1 Rac8 16. Qe2 {0-1 (40) Gvetadze,S (2289)-Nguyen,T (2321) Riadh 2017}) 9. Nc3 {[%emt 0:00:36]} a6 {[%emt 0:00:56]} 10. Qd1 $146 {[%emt 0:01:45]} ({Predecessor:} 10. Qd3 Nc6 11. Be3 Nge7 12. g4 h5 13. Bg2 Qb6 14. Qd2 Qb4 15. Ne2 hxg4 16. hxg4 Rxh1+ 17. Bxh1 Rc8 18. Rc1 Qxd2+ {½-½ (18) Merges,H (1773)-Kohn,M (1739) Heusenstamm 2017}) 10... Ne7 {[%emt 0:00:13]} 11. Be2 {[%emt 0:00:22]} O-O {[%emt 0:02:04]} 12. O-O {[%emt 0:00:04]} Nbc6 {[%emt 0:00:30]} 13. Be3 {[%emt 0:01:16]} Nf5 {[%emt 0:02:46]} 14. Qd2 {[%emt 0:02:07]} f6 {[%emt 0:02:47]} 15. exf6 {[%emt 0:01:19]} Qxf6 {[%emt 0:00:26]} 16. Bd3 {[%emt 0:10:38]} Nfxd4 {[%emt 0:09:54]} 17. Bg5 {[%emt 0:00:33]} Qf7 {[%emt 0:02:06]} 18. f4 {[%emt 0:01:01]} b5 {[%emt 0:19:01]} 19. Rae1 $17 {[%emt 0:06:06]} Rae8 {[%emt 0:04:54]} 20. Bb1 {[%emt 0:05:34]} Bf6 {[%emt 0:09:37]} 21. Bh6 {[%emt 0:00:47]} Bg7 {[%emt 0:02:34]} 22. Bg5 {[%emt 0:00:02]} Bf6 {[%emt 0:00:01]} 23. Bh6 {[%emt 0:00:09]} Bg7 {[%emt 0:00:03]} 24. Bg5 {[%emt 0:00:09]} Bf6 {[%emt 0:00:04]} 25. Bh6 {[%emt 0:00:01]} Bg7 {[%emt 0:00:05]} 26. Bg5 Bf6 27. Bh6 Bg7 28. Bg5 Qd7 29. Qd1 1/2-1/2

[Event "IIFL Wealth  4th Mumbai Junior U-13"]
[Site "Mumbai"]
[Date "2018.12.31"]
[Round "2"]
[White "Barde Om"]
[Black "Vaval Aaditi"]
[Result "1/2-1/2"]
[ECO "C50"]
[WhiteElo "1801"]
[BlackElo "1367"]
[Annotator "NA"]
[PlyCount "110"]
[EventDate "2018.12.30"]
[EventType "swiss"]
[EventCountry "IND"]
[SourceTitle "playchess.com"]
[Source "ChessBase"]
[SourceQuality "1"]
[TimeControl "40/5400+30:1800+30"]

1. e4 {[%emt 0:00:00]} e5 {[%emt 0:00:00]} 2. Nf3 {[%emt 0:00:00]} Nc6 {[%emt 0:00:00]} 3. Bc4 {[%emt 0:00:00]} Bc5 {[%emt 0:00:00]} 4. d3 {[%emt 0:00:00]} Nf6 {[%emt 0:00:58]} 5. c3 {[%emt 0:00:31]} O-O {[%emt 0:02:45]} 6. O-O {[%emt 0:02:10]} d6 {[%emt 0:00:24]} 7. Bg5 {[%emt 0:04:58]} h6 {[%emt 0:00:42]} 8. Bh4 {[%emt 0:00:32]} a6 {[%emt 0:04:34] C54: Giuoco Piano: 4 c3 Nf6, main lines with 5 d4 and 5 d3} 9. Bb3 {[%emt 0:01:32]} Ba7 {[%emt 0:01:13]} (9... g5 10. Bg3 Ba7 11. Nbd2 Kg7 12. Nc4 Ne7 13. Re1 Nh5 14. d4 f6 15. Ne3 Qe8 16. Qd3 Bd7 17. Rad1 Ng6 18. Nf5+ {½-½ (30) Ponomariov,R (2686)-Rodshtein,M (2678) Linares 2018}) 10. h3 g5 {[%emt 0:02:24]} 11. Bg3 {[%emt 0:07:08]} Ne7 $146 {[%emt 0:00:57]} ({Predecessor:} 11... Nh5 12. Kh1 Kg7 13. Nh2 Nxg3+ 14. fxg3 f5 15. Nd2 f4 16. gxf4 gxf4 {0-1 (36) Romanov,L (2066)-Kireev,V (2214) ICCF email 2016}) 12. Nbd2 {[%emt 0:12:23]} Ng6 {[%emt 0:01:56]} 13. Bh2 {[%emt 0:01:29]} ({Better is} 13. Nc4 $14) 13... Bd7 {[%emt 0:05:16]} 14. Qc2 {[%emt 0:17:56]} (14. Bg3 $11) 14... c5 {[%emt 0:24:13]} 15. d4 {[%emt 0:20:13]} (15. Nc4 $11 {keeps the balance.}) 15... cxd4 {[%emt 0:01:45]} 16. cxd4 {[%emt 0:00:13]} Rc8 {[%emt 0:00:21]} 17. Qd3 {[%emt 0:07:31]} (17. Qd1 $15) 17... Bb5 {[%emt 0:02:10]} 18. Bc4 {[%emt 0:00:27] [#]} (18. Qb1 $17) 18... Bxc4 $2 {[%emt 0:00:33]} (18... Rxc4 $1 $19 {[%mdl 512]} 19. Nxc4 d5 20. Nfxe5 (20. exd5 $2 e4 $19) 20... Nxe5 21. Bxe5 Bxc4) 19. Nxc4 {[%emt 0:00:07] [#]} b5 $2 {[%emt 0:01:06]} (19... d5 $1 $17 {[%cal Rd5c4] stays on course.} 20. Ncxe5 dxe4) 20. Ne3 {[%emt 0:01:39]} Bb8 {[%emt 0:08:32]} 21. Nf5 {[%emt 0:02:23]} Kh7 {[%emt 0:00:55]} 22. Qe3 {[%emt 0:04:05]} Nh5 {[%emt 0:06:38]} 23. Rfd1 {[%emt 0:10:30]} Qf6 {[%emt 0:04:03]} 24. Rd2 {[%emt 0:03:50]} Ngf4 {[%emt 0:04:40]} 25. Rad1 {[%emt 0:00:57]} Ng7 {[%emt 0:04:22]} 26. Nxg7 {[%emt 0:01:13]} Kxg7 {[%emt 0:00:22]} 27. dxe5 {[%emt 0:00:07]} dxe5 {[%emt 0:00:14]} 28. Bxf4 {[%emt 0:01:25]} gxf4 {[%emt 0:01:25]} 29. Qe2 {[%emt 0:00:38]} Rc4 {[%emt 0:01:59]} 30. g3 {[%emt 0:00:30]} fxg3 {[%emt 0:01:19]} 31. fxg3 {[%emt 0:00:03]} Qg6 {[%emt 0:01:13]} 32. Qg2 {[%emt 0:00:56]} Rxe4 {[%emt 0:02:02]} 33. Nh4 {[%emt 0:00:28]} Qb6+ {[%emt 0:01:38]} 34. Kh1 {[%emt 0:00:08]} Rc4 {[%emt 0:00:32]} 35. Nf5+ {[%emt 0:00:20]} Kh7 {[%emt 0:01:09]} 36. Qe2 {[%emt 0:01:06]} Qc6+ {[%emt 0:04:28]} 37. Kh2 {[%emt 0:00:16]} Qg6 {[%emt 0:03:09]} 38. Rf1 {[%emt 0:00:12]} Rg8 {[%emt 0:03:14]} 39. Qf2 {[%emt 0:01:01]} e4 {[%emt 0:02:14]} 40. Qe3 {[%emt 0:00:00]} Qe6 $15 {[%emt 0:00:00]} 41. Rg2 {[%emt 0:10:07]} Rg6 {[%emt 0:11:06]} 42. b3 {[%emt 0:06:58]} Rc8 {[%emt 0:01:42]} 43. Nd4 {[%emt 0:02:53]} Qd5 {[%emt 0:02:48]} 44. Rf5 {[%emt 0:05:16]} Qb7 {[%emt 0:00:14]} 45. Ne2 {[%emt 0:01:07]} Rd8 {[%emt 0:06:47]} 46. Nf4 {[%emt 0:03:11]} Rg5 {[%emt 0:02:50]} 47. Rxg5 {[%emt 0:02:15]} hxg5 {[%emt 0:00:02]} 48. Ne2 {[%emt 0:00:00]} Kg6 {[%emt 0:01:05]} 49. Qc3 {[%emt 0:02:10]} f6 {[%emt 0:03:26]} 50. Qc2 {[%emt 0:01:33]} Rd3 {[%emt 0:03:44]} 51. Nc1 {[%emt 0:00:31]} Rd7 {[%emt 0:01:32]} 52. Ne2 {[%emt 0:00:24]} Rd3 {[%emt 0:00:06]} 53. Nc1 {[%emt 0:00:34]} Rd7 {[%emt 0:00:06]} 54. Ne2 {[%emt 0:00:30]} Rd3 {[%emt 0:00:20]} 55. Nc1 {[%emt 0:00:32]} Rd7 {[%emt 0:00:10]} 1/2-1/2

[Event "IIFL Wealth  4th Mumbai Junior U-13"]
[Site "Mumbai"]
[Date "2018.12.31"]
[Round "2"]
[White "Garv Rai"]
[Black "Jadhav Jyotiraditya"]
[Result "1-0"]
[ECO "D00"]
[WhiteElo "1772"]
[BlackElo "1358"]
[Annotator "NA"]
[PlyCount "91"]
[EventDate "2018.12.30"]
[EventType "swiss"]
[EventCountry "IND"]
[SourceTitle "playchess.com"]
[Source "ChessBase"]
[SourceQuality "1"]
[TimeControl "40/5400+30:1800+30"]

1. d4 {[%emt 0:00:00]} d5 {[%emt 0:00:00]} 2. Bf4 {[%emt 0:00:00]} Nf6 {[%emt 0:00:02]} 3. e3 {[%emt 0:00:00]} e6 {[%emt 0:01:25]} 4. Nd2 {[%emt 0:00:49]} Bd6 {[%emt 0:00:38]} 5. Bg3 {[%emt 0:00:51]} O-O {[%emt 0:01:41]} 6. Bd3 {[%emt 0:00:30]} b6 {[%emt 0:02:12]} 7. Qe2 {[%emt 0:08:16]} Bb7 {[%emt 0:13:00]} 8. Ngf3 {[%emt 0:00:31]} c6 {[%emt 0:02:07]} 9. Ne5 {[%emt 0:01:42]} Qc7 {[%emt 0:03:30]} 10. f4 {[%emt 0:08:41]} c5 {[%emt 0:01:31]} 11. c3 {[%emt 0:00:28]} Nc6 {[%emt 0:02:12]} 12. a3 {[%emt 0:00:16]} a5 {[%emt 0:03:34]} 13. Bh4 {[%emt 0:01:35]} Be7 {[%emt 0:05:15]} 14. O-O {[%emt 0:01:30]} Ne8 {[%emt 0:20:21]} 15. Bxe7 {[%emt 0:07:03]} Qxe7 {[%emt 0:02:27]} 16. Rf3 {[%emt 0:02:02]} f5 {[%emt 0:07:00]} 17. Rh3 {[%emt 0:13:01]} Nf6 {[%emt 0:04:05]} 18. Ndf3 {[%emt 0:03:40]} c4 {[%emt 0:05:09]} 19. Bc2 {[%emt 0:00:13]} a4 {[%emt 0:00:12]} 20. Ng5 {[%emt 0:00:38]} g6 {[%emt 0:03:24]} 21. Rf1 {[%emt 0:08:19]} Kg7 {[%emt 0:02:30]} 22. Qe1 {[%emt 0:12:29]} h6 {[%emt 0:05:32]} 23. Ngf3 {[%emt 0:01:24]} Ng4 {[%emt 0:02:52]} 24. Rg3 {[%emt 0:06:44]} Ncxe5 {[%emt 0:04:18]} 25. dxe5 {[%emt 0:02:57]} h5 {[%emt 0:01:19]} 26. Nd4 {[%emt 0:02:17]} Nh6 {[%emt 0:02:57]} 27. Qd1 {[%emt 0:03:02]} h4 {[%emt 0:01:03]} 28. Rgf3 {[%emt 0:01:19]} Nf7 {[%emt 0:01:38]} 29. R3f2 {[%emt 0:01:35]} Rh8 {[%emt 0:01:26]} 30. Bxa4 {[%emt 0:05:59]} h3 {[%emt 0:00:35]} 31. g3 {[%emt 0:00:47]} Nh6 {[%emt 0:00:35]} 32. Bc2 {[%emt 0:00:54]} Ng4 {[%emt 0:00:15]} 33. Re2 {[%emt 0:01:10]} Bc8 {[%emt 0:00:16]} 34. Qe1 {[%emt 0:00:53]} Qc5 {[%emt 0:00:40]} 35. Nf3 {[%emt 0:01:43]} Bd7 {[%emt 0:00:47]} 36. Qd2 {[%emt 0:00:39]} b5 {[%emt 0:00:47]} 37. Qd4 {[%emt 0:00:26]} Qc6 {[%emt 0:00:24]} 38. Rd1 {[%emt 0:00:54]} Rhc8 {[%emt 0:00:46]} 39. e4 {[%emt 0:01:03]} fxe4 {[%emt 0:00:19]} 40. Bxe4 {[%emt 0:00:00]} Rc7 {[%emt 0:00:00]} 41. Bb1 {[%emt 0:01:43]} Rh8 {[%emt 0:02:34]} 42. Ng5 {[%emt 0:04:44]} Bc8 {[%emt 0:03:05]} 43. Rf1 {[%emt 0:01:33]} Rh5 {[%emt 0:02:32]} 44. Bc2 {[%emt 0:01:08]} Rd7 {[%emt 0:02:30]} 45. Rd2 {[%emt 0:02:02]} Rc7 {[%emt 0:02:08]} 46. Bd1 1-0

[Event "IIFL Wealth  4th Mumbai Junior U-13"]
[Site "Mumbai"]
[Date "2018.12.31"]
[Round "2"]
[White "Devesh Anand Naik"]
[Black "Khairmode Aditya"]
[Result "1-0"]
[ECO "C43"]
[WhiteElo "1763"]
[BlackElo "1337"]
[Annotator "NA RC"]
[PlyCount "90"]
[EventDate "2018.12.30"]
[EventType "swiss"]
[EventCountry "IND"]
[SourceTitle "playchess.com"]
[Source "ChessBase"]
[SourceQuality "1"]
[TimeControl "40/5400+30:1800+30"]

1. e4 {[%emt 0:00:00]} e5 {[%emt 0:00:00]} 2. Nf3 {[%emt 0:00:00]} Nf6 {[%emt 0:00:00]} 3. d4 {[%emt 0:02:22]} Nxe4 {[%emt 0:00:08]} 4. Bd3 {[%emt 0:00:30]} d5 {[%emt 0:01:13]} 5. dxe5 {[%emt 0:01:45]} Nc6 {[%emt 0:05:10]} 6. Qe2 {[%emt 0:09:53]} Bf5 {[%emt 0:05:47]} 7. Nbd2 {[%emt 0:03:19]} Nxd2 {[%emt 0:04:02]} 8. Bxd2 {[%emt 0:00:16]} Qd7 {[%emt 0:01:08]} 9. Bb5 {[%emt 0:06:10]} Bc5 {[%emt 0:04:14]} 10. Be3 {[%emt 0:02:52]} Bxe3 {[%emt 0:07:49]} 11. Qxe3 {[%emt 0:00:12]} a6 {[%emt 0:00:35]} 12. Bxc6 {[%emt 0:02:44]} Qxc6 {[%emt 0:00:38]} 13. Nd4 {[%emt 0:01:03]} Qg6 {[%emt 0:02:18]} 14. O-O {[%emt 0:02:52]} O-O {[%emt 0:02:14]} 15. Rfe1 {[%emt 0:03:50]} Rfe8 {[%emt 0:03:35]} 16. Qb3 {[%emt 0:07:06]} c6 {[%emt 0:06:09]} 17. Nxf5 {[%emt 0:01:45]} Qxf5 {[%emt 0:00:11]} 18. Qxb7 {[%emt 0:01:08]} Qxc2 {[%emt 0:02:35]} 19. Rac1 {[%emt 0:03:00]} Qd2 {[%emt 0:02:52]} 20. Qxc6 {[%emt 0:02:51]} Qxb2 {[%emt 0:00:44]} 21. Qxd5 {[%emt 0:27:45]} Rad8 {[%emt 0:00:46]} 22. Qb3 {[%emt 0:01:22]} Qxb3 {[%emt 0:00:30]} 23. axb3 {[%emt 0:00:08]} Rd3 {[%emt 0:00:53]} 24. Ra1 {[%emt 0:01:01]} Rxb3 {[%emt 0:00:42]} 25. Rxa6 {[%emt 0:00:11]} g6 {[%emt 0:00:28]} 26. g3 {[%emt 0:00:52]} Kg7 {[%emt 0:00:30]} 27. Ra7 {[%emt 0:01:08]} Rb6 {[%emt 0:04:11]} 28. f4 {[%emt 0:00:36]} Rbe6 {[%emt 0:00:22]} 29. Rd1 {[%emt 0:01:20]} R8e7 {[%emt 0:02:47]} 30. Rdd7 {[%emt 0:00:53]} Rxd7 {[%emt 0:01:09]} 31. Rxd7 {[%emt 0:00:06]} g5 {[%emt 0:01:18]} 32. Kf2 {[%emt 0:01:12]} gxf4 {[%emt 0:01:32]} 33. gxf4 {[%emt 0:00:07]} Rh6 {[%emt 0:02:08]} 34. Kg3 {[%emt 0:01:21]} Rg6+ {[%emt 0:00:30]} 35. Kf3 {[%emt 0:00:24]} Rh6 {[%emt 0:00:18]} 36. f5 {[%emt 0:01:29]} Kf8 {[%emt 0:02:45]} 37. Rd2 {[%emt 0:02:08]} Ke7 {[%emt 0:05:11]} 38. Kg4 {[%emt 0:01:26]} f6 {[%emt 0:07:16]} 39. e6 {[%emt 0:02:17]} Ke8 {[%emt 0:02:09]} 40. h4 {[%emt 0:00:00]} Ke7 {[%emt 0:00:00]} 41. h5 {[%emt 0:01:30]} Ke8 {[%emt 0:01:25]} 42. Rd7 {[%emt 0:00:14]} Kf8 {[%emt 0:02:45]} 43. Rd8+ {[%emt 0:00:05]} Ke7 {[%emt 0:00:35]} 44. Ra8 {[%emt 0:00:07]} Kd6 {[%emt 0:03:43]} 45. Ra7 {[%emt 0:00:13]} Kd5 1-0

[Event "IIFL Wealth  4th Mumbai Junior U-13"]
[Site "Mumbai"]
[Date "2018.12.31"]
[Round "2"]
[White "Ananmay Sharma"]
[Black "Aggarwal Vansh"]
[Result "1-0"]
[ECO "D00"]
[WhiteElo "1749"]
[BlackElo "1328"]
[Annotator "NA RC"]
[PlyCount "75"]
[EventDate "2018.12.30"]
[EventType "swiss"]
[EventCountry "IND"]
[SourceTitle "playchess.com"]
[Source "ChessBase"]
[SourceQuality "1"]
[TimeControl "40/5400+30:1800+30"]

1. d4 {[%emt 0:00:00]} d5 {[%emt 0:01:52]} 2. Bf4 {[%emt 0:00:00]} c5 {[%emt 0:00:15]} 3. e3 {[%emt 0:00:55]} cxd4 {[%emt 0:01:24]} 4. exd4 {[%emt 0:00:30]} Nc6 {[%emt 0:00:08]} 5. c3 {[%emt 0:00:06]} Bf5 {[%emt 0:00:22]} 6. Nd2 {[%emt 0:01:44]} e6 {[%emt 0:00:30]} 7. Ngf3 {[%emt 0:00:03]} Bd6 {[%emt 0:02:20]} 8. Bg3 {[%emt 0:01:29]} Bxg3 {[%emt 0:04:14]} 9. hxg3 {[%emt 0:00:35]} Nf6 {[%emt 0:00:15]} 10. Be2 {[%emt 0:01:03]} h6 {[%emt 0:01:14]} 11. O-O {[%emt 0:02:07]} Qb6 {[%emt 0:00:42]} 12. Qb3 {[%emt 0:01:00]} Qxb3 {[%emt 0:00:45]} 13. axb3 {[%emt 0:00:09]} O-O {[%emt 0:00:41]} 14. Ra3 {[%emt 0:01:22]} Ne4 {[%emt 0:07:38]} 15. b4 {[%emt 0:01:53]} a6 {[%emt 0:01:07]} 16. Rfa1 {[%emt 0:01:58]} Rac8 {[%emt 0:03:03]} 17. b5 {[%emt 0:06:47]} axb5 {[%emt 0:01:11]} 18. Bxb5 {[%emt 0:01:32]} f6 {[%emt 0:01:29]} 19. Nxe4 {[%emt 0:02:45]} Bxe4 {[%emt 0:00:51]} 20. Nd2 {[%emt 0:01:40]} Bf5 {[%emt 0:01:00]} 21. Nb3 {[%emt 0:04:16]} e5 {[%emt 0:01:54]} 22. dxe5 {[%emt 0:00:48]} fxe5 {[%emt 0:00:25]} 23. Nc5 {[%emt 0:02:33]} Rc7 {[%emt 0:01:51]} 24. Nxb7 {[%emt 0:02:02]} Nd4 {[%emt 0:11:18]} 25. cxd4 {[%emt 0:01:09]} Rxb7 {[%emt 0:01:27]} 26. Bc6 {[%emt 0:01:16]} Rxb2 {[%emt 0:00:33]} 27. Bxd5+ {[%emt 0:00:12]} Kh7 {[%emt 0:00:11]} 28. dxe5 {[%emt 0:00:28]} Rb5 {[%emt 0:00:14]} 29. Ra5 {[%emt 0:00:13]} Rb2 {[%emt 0:02:25]} 30. Re1 {[%emt 0:05:07]} Re8 {[%emt 0:02:19]} 31. e6 {[%emt 0:01:59]} Re7 {[%emt 0:01:04]} 32. Bc4 {[%emt 0:04:36]} Bg6 {[%emt 0:01:04]} 33. Rd5 {[%emt 0:01:59]} Rb6 {[%emt 0:05:52]} 34. Rd7 {[%emt 0:02:39]} Rxd7 {[%emt 0:01:14]} 35. exd7 {[%emt 0:00:02]} Rd6 {[%emt 0:03:00]} 36. Be6 {[%emt 0:01:51]} h5 {[%emt 0:00:49]} 37. Rc1 {[%emt 0:00:26]} Be4 {[%emt 0:00:42]} 38. Rc8 {[%emt 0:01:47]} 1-0

[Event "IIFL Wealth  4th Mumbai Junior U-13"]
[Site "Mumbai"]
[Date "2018.12.31"]
[Round "2"]
[White "Arhan Chethan Anand"]
[Black "Anurag Panigrahi"]
[Result "1/2-1/2"]
[ECO "D32"]
[WhiteElo "1710"]
[BlackElo "1315"]
[Annotator "NA RC"]
[PlyCount "115"]
[EventDate "2018.12.30"]
[EventType "swiss"]
[EventCountry "IND"]
[SourceTitle "playchess.com"]
[Source "ChessBase"]
[SourceQuality "1"]
[TimeControl "40/5400+30:1800+30"]

1. d4 {[%emt 0:00:00]} d5 {[%emt 0:00:00]} 2. c4 {[%emt 0:00:00]} e6 {[%emt 0:00:00]} 3. Nc3 {[%emt 0:00:00]} c5 {[%emt 0:00:00]} 4. cxd5 {[%emt 0:00:00]} exd5 {[%emt 0:00:08]} 5. Nf3 {[%emt 0:00:20]} Nf6 {[%emt 0:00:39]} 6. Bg5 {[%emt 0:01:14]} cxd4 {[%emt 0:08:27]} 7. Nxd4 {[%emt 0:08:57]} Nc6 {[%emt 0:01:39]} 8. e3 {[%emt 0:02:15]} Be7 {[%emt 0:00:55]} 9. Be2 {[%emt 0:03:34]} O-O {[%emt 0:01:38]} 10. O-O {[%emt 0:00:40]} h6 {[%emt 0:03:59]} 11. Bh4 {[%emt 0:00:43]} Nxd4 {[%emt 0:01:53]} 12. Qxd4 {[%emt 0:01:58]} Bf5 {[%emt 0:04:40]} 13. Bf3 {[%emt 0:09:08]} Qd7 {[%emt 0:03:37]} 14. Rfd1 {[%emt 0:04:38]} Rfd8 {[%emt 0:02:25]} 15. Rac1 {[%emt 0:02:42]} Ne4 {[%emt 0:13:51]} 16. Nxd5 {[%emt 0:14:44]} Bxh4 {[%emt 0:05:08]} 17. Bxe4 {[%emt 0:01:48]} Bxe4 {[%emt 0:02:10]} 18. Qxe4 {[%emt 0:00:02]} Qe6 19. Qxe6 {[%emt 0:06:21]} fxe6 {[%emt 0:01:24]} 20. Nc3 {[%emt 0:07:24]} Bf6 {[%emt 0:01:18]} 21. g3 {[%emt 0:04:02]} Bxc3 {[%emt 0:05:03]} 22. Rxd8+ {[%emt 0:01:09]} Rxd8 {[%emt 0:00:04]} 23. Rxc3 {[%emt 0:00:02]} Rd2 {[%emt 0:00:41]} 24. Rb3 {[%emt 0:00:35]} b6 {[%emt 0:00:15]} 25. Ra3 {[%emt 0:05:15]} Rxb2 {[%emt 0:00:18]} 26. Rxa7 {[%emt 0:00:10]} Kh7 {[%emt 0:01:02]} 27. a4 {[%emt 0:01:49]} Kg6 {[%emt 0:02:26]} 28. a5 {[%emt 0:01:50]} bxa5 {[%emt 0:00:14]} 29. Rxa5 {[%emt 0:00:01]} Kf6 {[%emt 0:00:25]} 30. Kg2 {[%emt 0:00:08]} Rc2 {[%emt 0:02:26]} 31. g4 {[%emt 0:01:51]} Rb2 {[%emt 0:03:17]} 32. Kg3 {[%emt 0:00:19]} Rc2 {[%emt 0:02:32]} 33. h4 {[%emt 0:01:34]} Rb2 {[%emt 0:02:22]} 34. f3 {[%emt 0:01:02]} Rb4 {[%emt 0:03:54]} 35. e4 {[%emt 0:00:38]} g5 {[%emt 0:07:13]} 36. e5+ {[%emt 0:02:57]} Kg6 {[%emt 0:01:44]} 37. h5+ {[%emt 0:00:17]} Kf7 {[%emt 0:00:14]} 38. Ra7+ {[%emt 0:00:02]} Kg8 {[%emt 0:00:09]} 39. Re7 {[%emt 0:02:30]} Rb6 {[%emt 0:00:23]} 40. Kf2 {[%emt 0:00:00]} Rb2+ {[%emt 0:00:00]} 41. Ke3 {[%emt 0:01:22]} Rb3+ {[%emt 0:02:32]} 42. Ke4 {[%emt 0:01:08]} Rb4+ {[%emt 0:02:33]} 43. Kd3 {[%emt 0:00:19]} Rb3+ {[%emt 0:01:26]} 44. Kd4 {[%emt 0:01:16]} Rxf3 {[%emt 0:01:01]} 45. Rxe6 {[%emt 0:00:04]} Rf4+ {[%emt 0:02:46]} 46. Kd5 {[%emt 0:00:25]} Rxg4 {[%emt 0:00:34]} 47. Rxh6 {[%emt 0:00:15]} Kf7 {[%emt 0:01:41]} 48. Rh7+ {[%emt 0:00:04]} Kf8 {[%emt 0:00:42]} 49. h6 {[%emt 0:00:45]} Rg1 {[%emt 0:00:32]} 50. Ke6 {[%emt 0:01:25]} Kg8 {[%emt 0:00:43]} 51. Rg7+ {[%emt 0:00:46]} Kf8 {[%emt 0:00:58]} 52. Kf6 {[%emt 0:00:59]} g4 {[%emt 0:01:26]} 53. h7 {[%emt 0:00:34]} Rf1+ {[%emt 0:00:27]} 54. Kg6 {[%emt 0:00:09]} Rh1 {[%emt 0:00:15]} 55. Rg8+ {[%emt 0:00:03]} Ke7 {[%emt 0:00:32]} 56. h8=Q {[%emt 0:00:14]} Rh2 57. Qh7+ Rxh7 {[%emt 0:00:57]} 58. Rh8 {[%emt 0:00:34]} 1/2-1/2

[Event "IIFL Wealth  4th Mumbai Junior U-13"]
[Site "Mumbai"]
[Date "2018.12.31"]
[Round "2"]
[White "Pawar, Harshit"]
[Black "Sohanganesh Uddhav Nikam"]
[Result "1-0"]
[ECO "C47"]
[WhiteElo "1671"]
[BlackElo "1299"]
[Annotator "NA RC"]
[PlyCount "68"]
[EventDate "2018.12.30"]
[EventType "swiss"]
[EventCountry "IND"]
[SourceTitle "playchess.com"]
[Source "ChessBase"]
[SourceQuality "1"]
[TimeControl "40/5400+30:1800+30"]

1. e4 {[%emt 0:00:00]} e5 {[%emt 0:00:00]} 2. Nf3 {[%emt 0:00:38]} Nc6 {[%emt 0:00:00]} 3. Nc3 {[%emt 0:00:42]} Nf6 {[%emt 0:00:00]} 4. d4 {[%emt 0:00:35]} exd4 {[%emt 0:01:32]} 5. Nd5 {[%emt 0:00:11]} h6 {[%emt 0:03:56]} 6. Bf4 {[%emt 0:13:07]} d6 {[%emt 0:00:29]} 7. Bb5 {[%emt 0:03:42]} a6 {[%emt 0:01:11]} 8. Bxc6+ {[%emt 0:15:34]} bxc6 {[%emt 0:00:04]} 9. Nxf6+ {[%emt 0:00:18]} Qxf6 {[%emt 0:00:11]} 10. Bg3 {[%emt 0:00:31]} d3 {[%emt 0:02:33]} 11. c3 {[%emt 0:06:32]} a5 {[%emt 0:09:13]} 12. O-O {[%emt 0:02:28]} Ba6 {[%emt 0:04:47]} 13. Re1 {[%emt 0:07:30]} Qd8 {[%emt 0:01:46]} 14. e5 {[%emt 0:03:39]} Be7 {[%emt 0:00:50]} 15. exd6 {[%emt 0:11:07]} cxd6 {[%emt 0:00:05]} 16. Nd4 {[%emt 0:00:28]} Qd7 {[%emt 0:01:52]} 17. Bxd6 {[%emt 0:04:22]} Qxd6 {[%emt 0:00:28]} 18. Nf5 {[%emt 0:00:34]} Qf6 {[%emt 0:00:33]} 19. Nxe7 {[%emt 0:04:16]} Qxe7 {[%emt 0:00:22]} 20. Qf3 {[%emt 0:01:21]} Rc8 {[%emt 0:02:55]} 21. c4 {[%emt 0:02:03]} Bxc4 {[%emt 0:02:56]} 22. Rxe7+ {[%emt 0:00:33]} Kxe7 {[%emt 0:00:02]} 23. Qe4+ {[%emt 0:00:35]} Be6 {[%emt 0:00:19]} 24. Qxd3 {[%emt 0:00:08]} c5 {[%emt 0:00:38]} 25. Qc3 {[%emt 0:00:43]} f6 {[%emt 0:01:15]} 26. Qxa5 {[%emt 0:00:54]} Rhd8 {[%emt 0:00:07]} 27. Re1 {[%emt 0:00:55]} Kf7 {[%emt 0:00:15]} 28. h4 {[%emt 0:00:56]} Bc4 {[%emt 0:01:05]} 29. b3 {[%emt 0:00:41]} Be6 {[%emt 0:01:00]} 30. Qa7+ {[%emt 0:00:25]} Rd7 {[%emt 0:00:12]} 31. Qa6 {[%emt 0:00:30]} Re8 {[%emt 0:01:34]} 32. Qc6 {[%emt 0:00:51]} Rd5 {[%emt 0:00:03]} 33. Kh2 {[%emt 0:01:04]} Rf5 {[%emt 0:00:53]} 34. Rxe6 {[%emt 0:00:50]} Rxe6 {[%emt 0:05:03]} 1-0